bitfinex/quotes_BTCUSD_20241103
["timestamp","ask_amount","ask_price","bid_price","bid_amount"]
[1730667936801,0.23894645,69143.0,69142.0,0.001636]
[1730667937252,0.24194645,69143.0,69142.0,0.001636]
[1730667937477,0.33333644,69143.0,69142.0,0.001636]
[1730667937632,0.32933644,69143.0,69142.0,0.001636]
[1730667938044,0.33433644,69143.0,69142.0,0.001636]
[1730667938456,0.130189,69130.0,69127.0,0.001914]
[1730667938687,0.130189,69130.0,69129.0,0.21704372]
[1730667938894,0.130189,69130.0,69128.0,0.00493635]
[1730667939090,0.130189,69130.0,69129.0,0.00493568]
[1730667939295,0.130189,69130.0,69127.0,0.001914]
[1730667939460,0.130189,69130.0,69129.0,0.00493568]
[1730667939461,0.13019,69130.0,69129.0,0.00493568]
[1730667939696,0.13119,69130.0,69128.0,0.00493635]
[1730667939894,0.13019,69130.0,69129.0,0.00493568]
[1730667940156,0.13019,69130.0,69127.0,0.001914]
[1730667940361,0.16451669,69130.0,69129.0,0.008]
[1730667940526,0.16451669,69130.0,69128.0,0.00493635]
[1730667940746,0.16451669,69130.0,69129.0,0.00493568]
[1730667940939,0.16551669,69130.0,69129.0,0.00493568]
[1730667941142,0.16451669,69130.0,69127.0,0.008914]
[1730667941313,0.16451669,69130.0,69129.0,0.00493568]
[1730667941516,0.03432669,69130.0,69127.0,0.007]
[1730667941844,0.130193,69128.0,69127.0,0.007]
[1730667942079,0.130193,69128.0,69125.0,0.005]
[1730667942396,0.130193,69128.0,69127.0,0.001914]
[1730667942599,0.02946987,69129.0,69119.0,0.005]
[1730667942815,0.02946987,69129.0,69120.0,0.005]
[1730667942816,0.130202,69123.0,69120.0,0.005]
[1730667943037,0.130202,69123.0,69118.0,0.0782]
[1730667943038,0.130202,69123.0,69118.0,0.080114]
[1730667943540,0.1953002,69123.0,69119.0,0.001914]
[1730667943976,0.1953002,69123.0,69122.0,0.0099552]
[1730667944195,0.1953002,69123.0,69122.0,0.0119552]
[1730667944657,0.1953002,69123.0,69122.0,0.0135972]
[1730667945355,0.1953002,69123.0,69122.0,0.0072972]
[1730667946061,0.1983002,69123.0,69122.0,0.0072972]
[1730667946276,0.1983002,69123.0,69122.0,0.0092112]
[1730667946486,0.133202,69123.0,69122.0,0.0052972]
[1730667946930,0.133202,69123.0,69122.0,0.0062972]
[1730667947132,0.130202,69123.0,69122.0,0.0062972]
[1730667947387,0.260383,69129.0,69125.0,0.001914]
[1730667947604,0.005,69137.0,69125.0,0.006914]
[1730667947828,0.47741472,69132.0,69125.0,0.006914]
[1730667948043,0.130191,69129.0,69126.0,0.00560369]
[1730667948264,0.260378,69130.0,69126.0,0.00751769]
[1730667948467,0.130191,69129.0,69126.0,0.00751769]
[1730667948674,0.133191,69129.0,69126.0,0.00751769]
[1730667949132,0.130191,69129.0,69128.0,0.001914]
[1730667949337,0.130191,69129.0,69127.0,0.001914]
[1730667949577,0.130191,69129.0,69128.0,0.00522472]
[1730667949777,0.135191,69129.0,69128.0,0.00522472]
[1730667949995,0.13019,69130.0,69128.0,0.00522472]
[1730667950452,0.130191,69129.0,69128.0,0.00822472]
[1730667950666,0.130191,69129.0,69128.0,0.00622472]
[1730667951179,0.1952847,69129.0,69128.0,0.00722472]
[1730667951400,0.1952847,69129.0,69128.0,0.001]
[1730667951618,0.1952847,69129.0,69128.0,0.002914]
[1730667951839,0.1962847,69129.0,69128.0,0.007]
[1730667952057,0.1962847,69129.0,69128.0,0.01138735]
[1730667952284,0.1962847,69129.0,69128.0,0.01330135]
[1730667952510,0.1962847,69129.0,69128.0,0.01138735]
[1730667952943,0.1952847,69129.0,69128.0,0.00538735]
[1730667953380,0.130193,69128.0,69125.0,0.006914]
[1730667953846,0.20179627,69128.0,69125.0,0.006914]
[1730667954053,0.20179627,69128.0,69126.0,0.00539089]
[1730667954933,0.130193,69128.0,69126.0,0.00539089]
[1730667955620,0.130195,69127.0,69126.0,0.00539089]
[1730667956727,0.131195,69127.0,69126.0,0.01730489]
[1730667956937,0.131195,69127.0,69126.0,0.01539089]
[1730667957175,0.131195,69127.0,69126.0,0.02630489]
[1730667957814,0.196572,69127.0,69126.0,0.02630489]
[1730667959177,0.196572,69127.0,69126.0,0.02439089]
[1730667959868,0.196572,69127.0,69126.0,0.02401047]
[1730667960303,0.131195,69127.0,69126.0,0.02401047]
[1730667960522,0.131195,69127.0,69126.0,0.02592447]
[1730667961446,0.001,69127.0,69126.0,0.02592447]
[1730667961656,0.131195,69127.0,69126.0,0.02592447]
[1730667962088,0.001,69127.0,69126.0,0.02592447]
[1730667962323,0.131195,69127.0,69126.0,0.02592447]
[1730667962776,0.001,69127.0,69126.0,0.02592447]
[1730667963679,0.001,69127.0,69126.0,0.15612147]
[1730667964379,0.001,69127.0,69126.0,0.45823593]
[1730667964605,0.001,69127.0,69126.0,0.71172193]
[1730667964824,0.001822,69128.0,69127.0,0.299069]
[1730667965045,0.001822,69128.0,69127.0,0.58059542]
[1730667965520,0.21704372,69142.0,69127.0,0.58578435]
[1730667965728,0.21704372,69142.0,69141.0,0.264482]
[1730667966218,0.21704372,69142.0,69141.0,0.26965968]
[1730667966438,0.000861,69143.0,69142.0,0.13208]
[1730667966672,0.000861,69143.0,69142.0,0.34837204]
[1730667966901,0.21704372,69170.0,69162.0,0.210529]
[1730667967381,0.21704372,69170.0,69162.0,0.21567188]
[1730667967627,0.21704372,69170.0,69169.0,0.130116]
[1730667967839,0.21704372,69170.0,69163.0,0.260254]
[1730667968056,0.260219,69173.0,69164.0,0.14579704]
[1730667968275,0.47724672,69177.0,69164.0,0.14579704]
[1730667968504,0.130106,69175.0,69171.0,0.13011]
[1730667968749,0.21704372,69177.0,69170.0,0.260224]
[1730667968994,0.21704372,69177.0,69175.0,0.001914]
[1730667969200,0.34033744,69187.0,69173.0,0.130106]
[1730667969201,0.08017044,69187.0,69178.0,0.132012]
[1730667969464,0.21704372,69180.0,69178.0,0.001914]
[1730667969681,0.130093,69181.0,69179.0,0.00507666]
[1730667969892,0.130095,69180.0,69179.0,0.00507666]
[1730667970085,0.130099,69178.0,69173.0,0.130107]
[1730667970377,0.260134,69195.0,69182.0,0.006914]
[1730667970589,0.260134,69195.0,69188.0,0.26016]
[1730667970590,0.21704372,69192.0,69188.0,0.26016]
[1730667970816,0.21704372,69192.0,69186.0,0.005]
[1730667971029,0.000819,69197.0,69190.0,0.001914]
[1730667971030,0.130068,69195.0,69190.0,0.001914]
[1730667971268,0.000819,69197.0,69191.0,0.260149]
[1730667971486,0.000819,69197.0,69192.0,0.130071]
[1730667971709,0.130066,69196.0,69192.0,0.00562435]
[1730667971928,0.26013,69196.0,69188.0,0.130079]
[1730667972148,0.000819,69197.0,69193.0,0.00506111]
[1730667972149,0.130069,69194.0,69193.0,0.00506111]
[1730667972375,0.130069,69194.0,69189.0,0.130078]
[1730667972596,0.130069,69194.0,69193.0,0.00506111]
[1730667972811,0.130069,69194.0,69187.0,0.260164]
[1730667972812,0.260134,69195.0,69187.0,0.260164]
[1730667973034,0.130069,69194.0,69193.0,0.00506111]
[1730667973264,0.130069,69194.0,69188.0,0.130079]
[1730667973480,0.130069,69194.0,69193.0,0.00506111]
[1730667973701,0.130069,69194.0,69185.0,0.001914]
[1730667973702,0.130081,69188.0,69180.0,0.005]
[1730667973963,0.07389347,69196.0,69193.0,0.00562346]
[1730667974211,0.21704372,69194.0,69191.0,0.130073]
[1730667974440,0.130065,69196.0,69191.0,0.130073]
[1730667974696,0.130069,69194.0,69186.0,0.001914]
[1730667974953,0.26013,69196.0,69186.0,0.001914]
[1730667974954,0.065196,69193.0,69186.0,0.001914]
[1730667975211,0.130074,69191.0,69187.0,0.130081]
[1730667975673,0.065196,69193.0,69187.0,0.130081]
[1730667975903,0.130072,69192.0,69187.0,0.130081]
[1730667976150,0.0715532,69191.0,69187.0,0.130081]
[1730667976386,0.0715532,69191.0,69190.0,0.001914]
[1730667976632,0.0715532,69191.0,69189.0,0.001914]
[1730667976905,0.26013,69196.0,69189.0,0.001914]
[1730667976906,0.000819,69197.0,69196.0,0.130065]
[1730667977613,0.000819,69197.0,69196.0,0.131979]
[1730667978097,0.000819,69197.0,69196.0,0.130065]
[1730667978325,0.000819,69197.0,69194.0,0.005]
[1730667978568,0.000819,69197.0,69195.0,0.130066]
[1730667978984,0.000819,69197.0,69196.0,0.005]
[1730667979413,0.000819,69197.0,69194.0,0.135068]
[1730667979664,0.26013,69196.0,69189.0,0.002]
[1730667979885,0.26013,69196.0,69182.0,0.262094]
[1730667979886,0.130065,69196.0,69195.0,0.005]
[1730667980136,0.16186306,69196.0,69195.0,0.011]
[1730667980350,0.16186306,69196.0,69195.0,0.005]
[1730667981016,0.35469822,69196.0,69184.0,0.47721672]
[1730667981246,0.130075,69191.0,69186.0,0.130083]
[1730667981467,0.000819,69197.0,69188.0,0.52032]
[1730667981682,0.000819,69197.0,69187.0,0.14579704]
[1730667981683,0.000819,69197.0,69193.0,0.130069]
[1730667982126,0.000819,69197.0,69194.0,0.00518978]
[1730667982342,0.000819,69197.0,69195.0,0.14579704]
[1730667982566,0.000819,69197.0,69196.0,0.209165]
[1730667982810,0.000819,69197.0,69196.0,0.360133]
[1730667984184,0.000819,69197.0,69196.0,0.372133]
[1730667984392,0.000819,69197.0,69196.0,0.360133]
[1730667985915,0.000819,69197.0,69196.0,0.364133]
[1730667986363,0.000819,69197.0,69196.0,0.368133]
[1730667986880,0.000819,69197.0,69196.0,0.51945042]
[1730667987349,0.000819,69197.0,69196.0,0.64845042]
[1730667987561,0.000819,69197.0,69196.0,0.69345042]
[1730667987777,0.000819,69197.0,69196.0,0.69745042]
[1730667987993,0.000819,69197.0,69196.0,0.68945042]
[1730667988227,0.000819,69197.0,69196.0,0.67345042]
[1730667988469,0.000819,69197.0,69196.0,0.67745042]
[1730667988908,0.000819,69197.0,69196.0,0.67345042]
[1730667989185,0.000819,69197.0,69196.0,0.68245042]
[1730667989476,0.000819,69197.0,69196.0,0.68045042]
[1730667989736,0.000819,69197.0,69196.0,0.66645042]
[1730667989965,0.000819,69197.0,69196.0,0.67845042]
[1730667990218,0.000819,69197.0,69196.0,0.69245042]
[1730667990860,0.000819,69197.0,69196.0,0.67845042]
[1730667991158,0.000819,69197.0,69196.0,0.68045042]
[1730667991615,0.000819,69197.0,69196.0,0.69445042]
[1730667992086,0.000819,69197.0,69196.0,0.68045042]
[1730667992326,0.000819,69197.0,69196.0,0.69445042]
[1730667992778,0.000819,69197.0,69196.0,0.70845042]
[1730667993012,0.000819,69197.0,69196.0,0.66645042]
[1730667993275,0.000819,69197.0,69196.0,0.68045042]
[1730667993477,0.000819,69197.0,69196.0,0.69445042]
[1730667993926,0.000819,69197.0,69196.0,0.519133]
[1730667994124,0.000819,69197.0,69196.0,0.533133]
[1730667994750,0.000819,69197.0,69196.0,0.488133]
[1730667994956,0.000819,69197.0,69196.0,0.474133]
[1730667995171,0.000819,69197.0,69196.0,0.16690883]
[1730667995379,0.130882,69197.0,69196.0,0.17490883]
[1730667995613,0.130882,69197.0,69196.0,0.02911179]
[1730667995828,0.130882,69197.0,69196.0,0.00711179]
[1730667996056,0.130882,69197.0,69196.0,0.014]
[1730667996278,0.24379017,69197.0,69196.0,0.005]
[1730667996718,0.24379017,69197.0,69196.0,0.012]
[1730667996981,0.22379017,69197.0,69196.0,0.005]
[1730667997239,0.22379017,69197.0,69196.0,0.009]
[1730667997505,0.000819,69198.0,69197.0,0.130063]
[1730667997757,0.000819,69198.0,69197.0,0.36075024]
[1730667997982,0.000819,69198.0,69197.0,0.36782445]
[1730667999523,0.000819,69198.0,69197.0,0.36497016]
[1730667999760,0.000819,69198.0,69197.0,0.36247016]
[1730667999987,0.000819,69198.0,69197.0,0.36347016]
[1730668001370,0.000819,69198.0,69197.0,0.36447016]
[1730668001903,0.000819,69198.0,69197.0,0.46947016]
[1730668002129,0.000819,69198.0,69197.0,0.47647016]
[1730668002366,0.000819,69198.0,69197.0,0.49947016]
[1730668002579,0.000819,69198.0,69197.0,0.49747016]
[1730668002801,0.000819,69198.0,69197.0,0.49547016]
[1730668003029,0.000819,69198.0,69197.0,0.50947016]
[1730668003246,0.000819,69198.0,69197.0,0.5222343]
[1730668003916,0.000819,69198.0,69197.0,0.5082343]
[1730668004038,0.000819,69198.0,69197.0,0.51647016]
[1730668004709,0.000819,69198.0,69197.0,0.50947016]
[1730668004906,0.000819,69198.0,69197.0,0.52347016]
[1730668005419,0.000819,69198.0,69197.0,0.49547016]
[1730668005821,0.000819,69198.0,69197.0,0.51847016]
[1730668006034,0.000819,69198.0,69197.0,0.50447016]
[1730668006241,0.000819,69198.0,69197.0,0.49547016]
[1730668006452,0.000819,69198.0,69197.0,0.47747016]
[1730668006879,0.000819,69198.0,69197.0,0.48647016]
[1730668008617,0.000819,69198.0,69197.0,0.48147016]
[1730668009492,0.000819,69198.0,69197.0,0.39947016]
[1730668011904,0.02260527,69198.0,69197.0,0.17190716]
[1730668012180,0.02260527,69198.0,69197.0,0.30197016]
[1730668012181,0.000819,69198.0,69197.0,0.30197016]
[1730668012882,0.000819,69198.0,69197.0,0.28297016]
[1730668013116,0.03561077,69198.0,69197.0,0.16990716]
[1730668013346,0.16567177,69198.0,69197.0,0.01511012]
[1730668013828,0.16567177,69198.0,69197.0,0.012]
[1730668014276,0.16567177,69198.0,69197.0,0.004]
[1730668014756,0.16567177,69198.0,69197.0,0.013]
[1730668014989,0.16567177,69198.0,69197.0,0.0152192]
[1730668015266,0.130069,69194.0,69192.0,0.001642]
[1730668015510,0.03561077,69198.0,69197.0,0.009]
[1730668015511,0.42579677,69198.0,69197.0,0.009]
[1730668015768,0.50119677,69198.0,69197.0,0.009]
[1730668016019,0.37113577,69198.0,69197.0,0.01]
[1730668016256,0.13007,69193.0,69192.0,0.001642]
[1730668016735,0.13007,69193.0,69192.0,0.004642]
[1730668016973,0.13007,69193.0,69192.0,0.001642]
[1730668017952,0.13007,69193.0,69192.0,0.002642]
[1730668018373,0.13007,69193.0,69192.0,0.001642]
[1730668018808,0.21006504,69193.0,69192.0,0.002642]
[1730668019025,0.21006504,69193.0,69192.0,0.005642]
[1730668019451,0.21006504,69193.0,69192.0,0.001642]
[1730668019679,0.21006504,69193.0,69192.0,0.002642]
[1730668019899,0.21006504,69193.0,69192.0,0.005642]
[1730668020123,0.21006504,69193.0,69192.0,0.002642]
[1730668020372,0.21006504,69193.0,69192.0,0.005642]
[1730668020591,0.21506504,69193.0,69192.0,0.005642]
[1730668020806,0.21506504,69193.0,69192.0,0.004642]
[1730668021275,0.21506504,69193.0,69192.0,0.005642]
[1730668021696,0.21506504,69193.0,69192.0,0.001642]
[1730668021910,0.21606504,69193.0,69192.0,0.001642]
[1730668022119,0.22006504,69193.0,69192.0,0.001642]
[1730668022596,0.21706504,69193.0,69192.0,0.001642]
[1730668022835,0.21506504,69193.0,69192.0,0.001642]
[1730668023047,0.41288421,69193.0,69192.0,0.002642]
[1730668023290,0.56520163,69193.0,69192.0,0.00075]
[1730668023519,0.130105,69175.0,69170.0,0.130112]
[1730668023744,0.0130105,69174.0,69167.0,0.1]
[1730668023995,0.0130105,69174.0,69171.0,0.00671496]
[1730668024258,0.0130105,69174.0,69168.0,0.27591404]
[1730668024486,0.130109,69173.0,69172.0,0.00671381]
[1730668024726,0.0130105,69174.0,69164.0,0.130124]
[1730668024729,0.130116,69169.0,69164.0,0.130124]
[1730668024948,0.130113,69171.0,69165.0,0.14579704]
[1730668025160,0.130113,69171.0,69166.0,0.13012]
[1730668025398,0.130113,69171.0,69167.0,0.130119]
[1730668025608,0.130113,69171.0,69168.0,0.01]
[1730668025827,0.05200003,69170.0,69168.0,0.138117]
[1730668026043,0.05200003,69170.0,69169.0,0.130116]
[1730668026283,0.001,69171.0,69170.0,0.130114]
[1730668026512,0.001,69171.0,69170.0,0.27591104]
[1730668026734,0.001,69171.0,69170.0,0.42722846]
[1730668026954,0.001,69171.0,69170.0,0.27591104]
[1730668027172,0.001,69171.0,69170.0,0.32221104]
[1730668028335,0.001,69171.0,69170.0,0.32321104]
[1730668028558,0.34712972,69185.0,69180.0,0.130094]
[1730668028783,0.13009,69183.0,69171.0,0.390336]
[1730668028998,0.130091,69182.0,69177.0,0.130099]
[1730668029220,0.130091,69182.0,69178.0,0.130098]
[1730668029449,0.06810455,69181.0,69178.0,0.137102]
[1730668029900,0.06810455,69181.0,69180.0,0.004]
[1730668030128,0.19819755,69181.0,69180.0,0.004]
[1730668030351,0.19819755,69181.0,69180.0,0.01100171]
[1730668030570,0.19819755,69181.0,69180.0,0.004]
[1730668031253,0.13011,69173.0,69170.0,0.004642]
[1730668031473,0.0650527,69172.0,69171.0,0.00701203]
[1730668031684,0.1951637,69172.0,69171.0,0.00701203]
[1730668031920,0.1951637,69172.0,69171.0,0.001]
[1730668032347,0.1951637,69172.0,69170.0,0.001642]
[1730668032348,0.130112,69171.0,69170.0,0.001642]
[1730668032582,0.17564967,69171.0,69170.0,0.001642]
[1730668032805,0.17564967,69171.0,69170.0,0.00865518]
[1730668033013,0.17564967,69171.0,69170.0,0.001642]
[1730668033227,0.04553767,69171.0,69170.0,0.00865518]
[1730668033454,0.260195,69179.0,69170.0,0.001642]
[1730668033455,0.130101,69177.0,69170.0,0.001642]
[1730668033704,0.34714472,69177.0,69170.0,0.001642]
[1730668033977,0.130107,69174.0,69170.0,0.131755]
[1730668034188,0.130107,69174.0,69171.0,0.00701939]
[1730668034403,0.13011,69172.0,69171.0,0.00701939]
[1730668034630,0.41651342,69179.0,69171.0,0.00701939]
[1730668034631,0.260194,69179.0,69171.0,0.00701939]
[1730668034860,0.15131742,69190.0,69170.0,0.266869]
[1730668034861,0.21704372,69178.0,69170.0,0.266869]
[1730668035084,0.21704372,69185.0,69171.0,0.15282007]
[1730668035299,0.21704372,69185.0,69171.0,0.15571123]
[1730668035544,0.001,69174.0,69171.0,0.15571123]
[1730668035813,0.001,69174.0,69173.0,0.130108]
[1730668036032,0.21704372,69185.0,69173.0,0.130108]
[1730668036033,0.21704372,69185.0,69173.0,0.14579704]
[1730668036245,0.130104,69176.0,69173.0,0.15281713]
[1730668036467,0.260202,69177.0,69173.0,0.00702009]
[1730668036693,0.0260202,69176.0,69170.0,0.001642]
[1730668036913,0.130107,69174.0,69170.0,0.001642]
[1730668037134,0.130107,69174.0,69170.0,0.131755]
[1730668037574,0.130112,69171.0,69170.0,0.001642]
[1730668038032,0.130112,69171.0,69170.0,0.009642]
[1730668038252,0.1951662,69171.0,69170.0,0.009642]
[1730668038892,0.1951662,69171.0,69170.0,0.010642]
[1730668039116,0.1961662,69171.0,69170.0,0.020642]
[1730668041646,0.1960662,69171.0,69170.0,0.020642]
[1730668047081,0.42886324,69171.0,69170.0,0.011642]
[1730668047283,0.47716324,69171.0,69170.0,0.011642]
[1730668047524,0.47716324,69171.0,69170.0,0.001642]
[1730668047734,0.47616324,69171.0,69170.0,0.001642]
[1730668047969,0.60416324,69171.0,69170.0,0.001642]
[1730668048173,0.65318055,69171.0,69170.0,0.001642]
[1730668048358,0.65518055,69171.0,69170.0,0.001642]
[1730668048622,0.69428107,69171.0,69170.0,0.001642]
[1730668049057,0.65918055,69171.0,69170.0,0.002642]
[1730668049271,0.70028107,69171.0,69170.0,0.002642]
[1730668049485,0.65718055,69171.0,69170.0,0.002642]
[1730668050332,0.64918055,69171.0,69170.0,0.001642]
[1730668050548,0.66118055,69171.0,69170.0,0.003642]
[1730668050759,0.68382827,69171.0,69170.0,0.003642]
[1730668051224,0.68382827,69171.0,69170.0,0.002642]
[1730668051225,0.68182827,69171.0,69170.0,0.002642]
[1730668051494,0.31267703,69171.0,69170.0,0.002642]
[1730668051702,0.245012,69171.0,69170.0,0.002642]
[1730668052152,0.142012,69171.0,69170.0,0.003642]
[1730668053700,0.132012,69171.0,69170.0,0.002642]
[1730668053921,0.132012,69171.0,69170.0,0.001642]
[1730668053922,0.134012,69171.0,69170.0,0.001642]
[1730668054621,0.132012,69171.0,69170.0,0.001642]
[1730668054831,0.133012,69171.0,69170.0,0.001642]
[1730668055308,0.132012,69171.0,69170.0,0.001642]
[1730668055520,0.130012,69171.0,69170.0,0.001642]
[1730668056658,0.135012,69171.0,69170.0,0.001642]
[1730668056872,0.21638794,69171.0,69170.0,0.001642]
[1730668057325,0.21838794,69171.0,69170.0,0.001642]
[1730668057539,0.36818498,69171.0,69170.0,0.001642]
[1730668057771,0.61798498,69171.0,69170.0,0.001642]
[1730668057976,0.66302622,69171.0,69170.0,0.001642]
[1730668058198,0.66802622,69171.0,69170.0,0.001642]
[1730668058450,0.73074604,69171.0,69170.0,0.001642]
[1730668058707,0.66402622,69171.0,69170.0,0.001642]
[1730668058888,0.66702622,69171.0,69170.0,0.001642]
[1730668059583,0.71018626,69171.0,69170.0,0.001642]
[1730668060223,0.72874604,69171.0,69170.0,0.001642]
[1730668060435,0.67502622,69171.0,69170.0,0.002642]
[1730668060665,0.73877507,69171.0,69170.0,0.002642]
[1730668060886,0.74277507,69171.0,69170.0,0.003642]
[1730668061109,0.74277507,69171.0,69170.0,0.001642]
[1730668061110,0.72777507,69171.0,69170.0,0.001642]
[1730668061319,0.82261178,69171.0,69170.0,0.002642]
[1730668061535,0.82761178,69171.0,69170.0,0.003642]
[1730668061757,0.68102622,69171.0,69170.0,0.003642]
[1730668062175,0.82773498,69171.0,69170.0,0.003642]
[1730668062396,0.82778052,69171.0,69170.0,0.003642]
[1730668062612,0.68102622,69171.0,69170.0,0.003642]
[1730668063081,0.82771677,69171.0,69170.0,0.003642]
[1730668063296,0.72780275,69171.0,69170.0,0.001642]
[1730668063546,0.66302622,69171.0,69170.0,0.002642]
[1730668063777,0.89506994,69171.0,69170.0,0.003642]
[1730668063993,0.82461939,69171.0,69170.0,0.003642]
[1730668064198,0.81361939,69171.0,69170.0,0.002642]
[1730668064409,0.82061939,69171.0,69170.0,0.002642]
[1730668064623,0.82061939,69171.0,69170.0,0.003642]
[1730668064843,0.82461939,69171.0,69170.0,0.003642]
[1730668065052,0.82461939,69171.0,69170.0,0.002642]
[1730668065267,0.93657449,69171.0,69170.0,0.003642]
[1730668065472,0.92557449,69171.0,69170.0,0.002642]
[1730668065910,0.9040344,69171.0,69170.0,0.002642]
[1730668066128,0.81763249,69171.0,69170.0,0.002642]
[1730668066339,0.92563487,69171.0,69170.0,0.002642]
[1730668066552,0.91763487,69171.0,69170.0,0.001642]
[1730668066757,0.92163487,69171.0,69170.0,0.002642]
[1730668067178,0.81363249,69171.0,69170.0,0.001642]
[1730668067404,0.82945349,69171.0,69170.0,0.003642]
[1730668067585,0.82545349,69171.0,69170.0,0.002642]
[1730668067837,0.81445349,69171.0,69170.0,0.001642]
[1730668068044,0.81845349,69171.0,69170.0,0.002642]
[1730668068257,0.82545349,69171.0,69170.0,0.002642]
[1730668068469,0.93345587,69171.0,69170.0,0.002642]
[1730668068678,0.92645587,69171.0,69170.0,0.002642]
[1730668068887,0.93745587,69171.0,69170.0,0.003642]
[1730668070222,0.87007769,69171.0,69170.0,0.003642]
[1730668070451,0.69265349,69171.0,69170.0,0.002642]
[1730668070670,0.76008006,69171.0,69170.0,0.003642]
[1730668070893,0.40563004,69171.0,69170.0,0.003642]
[1730668071577,0.51551099,69171.0,69170.0,0.003642]
[1730668071994,0.51751099,69171.0,69170.0,0.003642]
[1730668072210,0.65587973,69171.0,69170.0,0.003642]
[1730668073287,0.65588548,69171.0,69170.0,0.003642]
[1730668073526,0.7384239,69171.0,69170.0,0.003642]
[1730668074010,0.59106328,69171.0,69170.0,0.003642]
[1730668074444,0.73856567,69171.0,69170.0,0.003642]
[1730668074866,0.82499224,69171.0,69170.0,0.003642]
[1730668075078,0.82502332,69171.0,69170.0,0.003642]
[1730668075490,0.82302332,69171.0,69170.0,0.003642]
[1730668076163,0.81802332,69171.0,69170.0,0.003642]
[1730668076378,0.64891664,69171.0,69170.0,0.003642]
[1730668076591,0.65391664,69171.0,69170.0,0.003642]
[1730668077034,0.65591664,69171.0,69170.0,0.003642]
[1730668077255,0.59106328,69171.0,69170.0,0.003642]
[1730668077460,0.65591664,69171.0,69170.0,0.003642]
[1730668077668,0.73909834,69171.0,69170.0,0.003642]
[1730668077872,0.82555562,69171.0,69170.0,0.003642]
[1730668078303,0.73909834,69171.0,69170.0,0.003642]
[1730668078966,0.76209834,69171.0,69170.0,0.003642]
[1730668079654,0.76116069,69171.0,69170.0,0.003642]
[1730668082425,0.89094013,69171.0,69170.0,0.003642]
[1730668082646,0.89161159,69171.0,69170.0,0.003642]
[1730668083354,0.83976535,69171.0,69170.0,0.003642]
[1730668086426,0.83976535,69171.0,69143.0,0.001642]
[1730668086427,0.130163,69144.0,69143.0,0.001642]
[1730668086881,0.130163,69144.0,69143.0,0.00850318]
[1730668087133,0.130163,69144.0,69143.0,0.001642]
[1730668087866,0.130163,69144.0,69143.0,0.008642]
[1730668088083,0.130163,69144.0,69143.0,0.00965886]
[1730668088508,0.130163,69144.0,69143.0,0.008642]
[1730668088713,0.131163,69144.0,69143.0,0.004642]
[1730668088916,0.131163,69144.0,69143.0,0.01265886]
[1730668089153,0.130163,69144.0,69143.0,0.001642]
[1730668089361,0.130163,69144.0,69143.0,0.004642]
[1730668089570,0.17114318,69144.0,69143.0,0.01265886]
[1730668089779,0.17114318,69144.0,69143.0,0.004642]
[1730668090603,0.17214318,69144.0,69143.0,0.010642]
[1730668091011,0.17214318,69144.0,69143.0,0.004642]
[1730668091012,0.17114318,69144.0,69143.0,0.004642]
[1730668091224,0.17114318,69144.0,69143.0,0.008642]
[1730668091427,0.17614318,69144.0,69143.0,0.001642]
[1730668091634,0.17814318,69144.0,69143.0,0.001642]
[1730668091868,0.17814318,69144.0,69143.0,0.007642]
[1730668091869,0.22346117,69144.0,69143.0,0.007642]
[1730668092075,0.22246117,69144.0,69143.0,0.001642]
[1730668092284,0.17614318,69144.0,69143.0,0.001642]
[1730668092488,0.17714318,69144.0,69143.0,0.001642]
[1730668093140,0.17614318,69144.0,69143.0,0.001642]
[1730668093352,0.17914318,69144.0,69143.0,0.001642]
[1730668094009,0.18114318,69144.0,69143.0,0.001642]
[1730668094705,0.17814318,69144.0,69143.0,0.001642]
[1730668094923,0.130174,69138.0,69137.0,0.026142]
[1730668096837,0.131174,69138.0,69137.0,0.026142]
[1730668097736,0.131174,69138.0,69137.0,0.030142]
[1730668097963,0.131174,69138.0,69137.0,0.026142]
[1730668098203,0.130174,69138.0,69137.0,0.026142]
[1730668098420,0.22862407,69138.0,69137.0,0.035142]
[1730668098632,0.22762407,69138.0,69137.0,0.029142]
[1730668099533,0.22762407,69138.0,69127.0,0.262023]
[1730668099534,0.09745007,69138.0,69128.0,0.0456]
[1730668099764,0.130189,69130.0,69129.0,0.076]
[1730668099982,0.130189,69130.0,69129.0,0.08382707]
[1730668100190,0.26036,69135.0,69129.0,0.076]
[1730668100409,0.156319,69134.0,69130.0,0.130188]
[1730668100635,0.130184,69133.0,69129.0,0.08382927]
[1730668100932,0.130185,69132.0,69131.0,0.00782659]
[1730668101157,0.130185,69132.0,69127.0,0.001636]
[1730668101158,0.130187,69131.0,69130.0,0.00782793]
[1730668101387,0.34978017,69132.0,69129.0,0.01]
[1730668101620,0.34978017,69132.0,69127.0,0.001636]
[1730668101621,0.130193,69128.0,69127.0,0.001636]
[1730668101833,0.20422782,69128.0,69127.0,0.001636]
[1730668103100,0.20422782,69128.0,69127.0,0.003636]
[1730668103945,0.20422782,69128.0,69127.0,0.008636]
[1730668104161,0.260352,69137.0,69129.0,0.0787]
[1730668104380,0.21704372,69139.0,69129.0,0.0787]
[1730668104381,0.34723272,69130.0,69129.0,0.0787]
[1730668104593,0.130189,69130.0,69129.0,0.0787]
[1730668104831,0.1952824,69130.0,69129.0,0.0787]
[1730668105044,0.0650934,69130.0,69129.0,0.0787]
[1730668105481,0.1952824,69130.0,69129.0,0.0787]
[1730668105695,0.130189,69130.0,69129.0,0.0787]
[1730668106141,0.130189,69130.0,69129.0,0.0817]
[1730668106786,0.130189,69130.0,69129.0,0.0867]
[1730668108951,0.130189,69130.0,69129.0,0.008]
[1730668109163,0.1952813,69130.0,69129.0,0.008]
[1730668109812,0.2002813,69130.0,69129.0,0.005]
[1730668110025,0.130193,69128.0,69127.0,0.001636]
[1730668110244,0.2240012,69128.0,69127.0,0.001636]
[1730668111634,0.60771566,69128.0,69127.0,0.001636]
[1730668112082,0.60771566,69128.0,69127.0,0.002636]
[1730668112083,0.63271566,69128.0,69127.0,0.002636]
[1730668112565,0.63271566,69128.0,69127.0,0.001636]